Cogmind - Beta 15 @@@ ROGUE MODE // 2025.09.02 @ 22:09:24 Player: erfael Result: Destroyed by G-34 Mercenary with Small Laser Performance ------------- Evolutions (0) 0 Regions Visited (2) 400 Robots Destroyed (31) 155 Value Destroyed (661) 661 Prototype IDs (0) 0 Alien Tech Used (0) 0 Bonus (0) 0 TOTAL SCORE: 1216 Bonus ------- None Cogmind --------- Core Integrity 0/250 Matter 300/300 Energy 100/100 System Corruption 0% Temperature Cool (6) Movement Core (350) Ox6 Location -10/Mines Parts ------- > --- POWER (1) -------- (None) > --- PROPULSION (2) --- (None) > --- UTILITY (2) ------ Large Storage Unit > --- WEAPON (2) ------- (None) > --- INVENTORY (15) --- Ion Engine Aluminum Leg Aluminum Leg Aluminum Leg Aluminum Leg Small Battery (100) Improved Terrain Scanner Improved Terrain Scanner Seismic Detector Targeting Computer Light Armor Plating Light Armor Plating Heavy Assault Rifle Heavy Assault Rifle Peak State ------------ > --- POWER ------------ Ion Engine > --- PROPULSION ------- Aluminum Leg Aluminum Leg > --- UTILITY ---------- Large Storage Unit Seismic Detector > --- WEAPON ----------- Medium Laser Particle Gun > --- INVENTORY -------- Light Treads Light Treads Aluminum Leg Aluminum Leg Aluminum Leg Aluminum Leg Small Battery Improved Terrain Scanner Improved Terrain Scanner Seismic Detector [Rating: 9] Favorites ----------- Power Ion Engine Engine Ion Engine Propulsion Aluminum Leg Leg Aluminum Leg Utility Seismic Detector Device Seismic Detector Storage Large Storage Unit Weapon Medium Laser Energy Gun Medium Laser Energy Cannon Beam Cannon Ballistic Gun Assault Rifle Build | -11 -10 -10 ------- Run | Yrd Mat Min Slots Evolved . | . . . Power . | . . . Propulsion . | . . . Utility . | . . . Weapon . | . . . Parts Attached 23 | 7 14 2 Power 3 | 1 2 . Engine 3 | 1 2 . Core . | . . . Reactor . | . . . Propulsion 8 | 2 6 . Treads . | . . . Leg 8 | 2 6 . Wheel . | . . . Hover . | . . . Flight . | . . . Utility 5 | 2 3 . Device 2 | 1 1 . Storage 3 | 1 2 . Processor . | . . . Hackware . | . . . Protection . | . . . Artifact . | . . . Weapon 7 | 2 3 2 Energy Gun 3 | . 3 . Energy Cannon 1 | . . 1 Ballistic Gun 3 | 2 . 1 Ballistic Cannon . | . . . Launcher . | . . . Special Weapon . | . . . Impact Weapon . | . . . Slashing Weapon . | . . . Piercing Weapon . | . . . Special Melee Weapon . | . . . Unidentified Prototypes . | . . . Parts Lost 9 | . 3 6 Power 2 | . 1 1 Propulsion 2 | . . 2 Utility 1 | . . 1 Weapon 4 | . 2 2 Highest Loss Streak 6 | . 3 6 To Critical Strikes . | . . . Average Backups 12 | 4 12 14 Power . | . . 1 Propulsion 4 | 1 4 4 Utility 5 | 1 5 7 Weapon 1 | . 1 2 Tool/Special . | . . . Unused Backups 15 | . 3 12 Power 1 | . . 1 Propulsion 4 | . 2 2 Utility 8 | . 1 7 Weapon 2 | . . 2 Tool/Special . | . . . Average Slot Usage (%) 99 | . 99 99 Engine 13 | . 13 13 Leg 27 | . 28 27 Device 13 | . 14 13 Storage 14 | . 14 14 Energy Gun 17 | . 17 18 Energy Cannon 1 | . . 7 Ballistic Gun 7 | . 9 2 Peak Build Rating 9 | 8 9 9 Average Rating 8 | 6 8 8 On Entrance 5 | . 8 9 Naked Turns . | . . . Heaviest Build 31 | 13 31 31 Greatest Support 20 | 20 20 20 Greatest Overweight (x) 7 | 2 1 7 Average Overweight (x) . | . . 1 Largest Inventory Capacity 15 | 8 15 15 Average Capacity 14 | 7 14 15 Most Carried 15 | 7 15 15 Average Carried 12 | 4 12 14 Final Capacity 15 | 8 15 15 Final Carried 15 | 7 15 14 Class Distribution -------------------- 55% | Scavenger-Mutant 44% | Mutant Dominant Class ---------------- Scavenger-Mutant | -10/Materials Mutant | -10/Mines Resources | -11 -10 -10 ----------- Run | Yrd Mat Min Matter Collected 715 | 360 323 32 Remotely . | . . . Salvage Created 1081 | 245 627 209 Parts 77 | 31 38 8 Haulers Intercepted 1 | . 1 . Recyclers Shooed 1 | . . 1 Parts Field Recycled . | . . . Retrieved Matter . | . . . Parts Self-Destructed . | . . . Prevented . | . . . Kills | -11 -10 -10 ------- Run | Yrd Mat Min Combat Hostiles Destroyed 18 | . 17 1 Guns 17 | . 16 1 Classes Destroyed 7 | 3 3 1 Worker 2 | 2 . . Tunneler 7 | 7 . . Hauler 1 | . 1 . Recycler 3 | 1 . 2 Swarmer 3 | . 3 . Grunt 14 | . 14 . Sentry 1 | . . 1 Best Kill Streak 5 | 5 3 3 Combat Bots Only 3 | . 3 1 Max Kills in Single Turn 2 | 2 1 1 Gunslinging . | . . . Exploded . | . . . Melee . | . . . Uniques/NPCs Destroyed . | . . . Combat | -11 -10 -10 -------- Run | Yrd Mat Min Hostile Shots Fired 155 | . 93 62 Missed 34 | . 17 17 Hits 121 | . 76 45 Projectile 121 | . 76 45 Damage Taken 1367 | . 857 510 Core 254 | . 142 112 Absorbed by Shields . | . . . Regen/Repaired (Parts) 51 | . 51 . Core Remaining (%) 100 | 100 . . Volleys Fired 101 | 15 69 17 Largest 2 | 2 2 2 Hottest 115 | 40 115 115 Shots Fired 190 | 30 126 34 Gun 183 | 30 126 27 Cannon 7 | . . 7 Launcher . | . . . Special . | . . . Kinetic 103 | 30 66 7 Thermal 87 | . 60 27 Explosive . | . . . Electromagnetic . | . . . Robot Hit Streak 16 | 5 16 6 Robot Miss Streak 3 | 3 3 1 Penetration Max . | . . . Secondary Targets . | . . . Shots Hit Robots 119 | 15 92 12 Core Hits 49 | 10 33 6 Critical Kills 1 | . 1 . Critical Parts Destroyed . | . . . Critical Strikes 3 | . 3 . Burn 2 | . 2 . Destroy 1 | . 1 . Melee Attacks . | . . . Impact . | . . . Slashing . | . . . Piercing . | . . . Sneak Attacks . | . . . Combat Hostiles . | . . . Follow-up Attacks . | . . . Damage Inflicted 1588 | 174 1246 168 Guns 1588 | 174 1246 168 Cannons . | . . . Explosions . | . . . Melee . | . . . Ramming . | . . . Kinetic 840 | 174 625 41 Thermal 748 | . 621 127 Explosive . | . . . Electromagnetic . | . . . Impact . | . . . Slashing . | . . . Piercing . | . . . Highest Corruption . | . . . Average Corruption . | . . . Corruption Purged . | . . . Corruption Blocked . | . . . Overload Shots . | . . . Overflow Damage . | . . . Projectiles . | . . . Explosions . | . . . Melee . | . . . Knockbacks . | . . . Impact . | . . . Kinetic . | . . . Secondary . | . . . Self-Inflicted Damage . | . . . Shots . | . . . Rammed . | . . . Targets Rammed . | . . . Kicked . | . . . Crushed . | . . . Highest Temperature 460 | . 460 352 Average Temperature 133 | . 146 105 Received Heat Transfer 687 | . 432 255 Effects 6 | . 5 1 Shutdowns 1 | . 1 . Energy Bleed 4 | . 4 . Short Circuit 1 | . . 1 Siege Activations . | . . . Martial Activations . | . . . Shielding Activations . | . . . Robots Disrupted . | . . . Combat Hostiles . | . . . Robots Corrupted . | . . . Combat Hostiles . | . . . Parts Fried . | . . . Impact Corruptions . | . . . Robots Melted 1 | . 1 . Combat Hostiles 1 | . 1 . Parts Melted 5 | . 3 2 Heat Transferred 2109 | . 1776 333 Parts Sabotaged . | . . . Parts Stolen . | . . . Parts Stripped . | . . . Power Chain Reactions . | . . . Alert | -11 -10 -10 ------- Run | Yrd Mat Min Maximum Alert Level . | . . . Low Security (%) 100 | 100 100 100 Level 1 . | . . . Level 2 . | . . . Level 3 . | . . . Level 4 . | . . . Level 5 . | . . . High Security . | . . . Max Security . | . . . Peak Influence 130 | 25 130 39 Initial 39 | . . 39 Average 36 | 3 51 3 Influence Increases 529 | 50 449 30 Destroy 0b10 Robot/C 360 | . 340 20 Destroy 0b10 Robot/NC 65 | 50 5 10 Destroy Leader 82 | . 82 . Successful Hack 5 | . 5 . Destroy Structure 2 | . 2 . Lose Combat Pursuer 15 | . 15 . Influence Decreases 529 | 50 348 131 Entered New Map 62 | . . 62 Time Decay 447 | 50 328 69 Lost Part 20 | . 20 . Squads Dispatched 4 | . 4 . Investigation 2 | . 2 . Extermination . | . . . Reinforcement 2 | . 2 . Assault . | . . . Garrison . | . . . Intercept . | . . . Searches Triggered . | . . . Construction Impeded . | . . . Haulers Reinforced . | . . . Active Scanning Responses . | . . . Cargo Convoy Interrupts . | . . . Stealth | -11 -10 -10 --------- Run | Yrd Mat Min Distress Signals 2 | . 2 . Communications Jammed . | . . . Distress Signals . | . . . Times Spotted 36 | . 30 6 Peak Tracking Total 5 | . 5 4 Tactical Retreats 1 | . 1 . Traps | -11 -10 -10 ------- Run | Yrd Mat Min Traps Triggered 2 | . 2 . Indirectly . | . . . Trap Hack Attempts . | . . . Triggered . | . . . Disarmed . | . . . Reprogrammed . | . . . Reused . | . . . Traps Extracted . | . . . Installed . | . . . Triggered . | . . . Machines | -11 -10 -10 ---------- Run | Yrd Mat Min Machines Disabled . | . . . Max in Single Turn . | . . . Machines Repaired . | . . . Machines Dismantled . | . . . Machines Sabotaged . | . . . Overloaded Fab Kills . | . . . Hacking | -11 -10 -10 --------- Run | Yrd Mat Min Machines Accessed 4 | . 4 . Terminals 3 | . 3 . Fabricators . | . . . Repair Stations 1 | . 1 . Recycling Units . | . . . Scanalyzers . | . . . Garrison Access . | . . . Total Hacks 9 | . 9 . Successful 5 | . 5 . Failed 4 | . 4 . Catastrophic . | . . . Database Lockouts . | . . . Manual 7 | . 7 . Terminals 7 | . 7 . Fabricators . | . . . Repair Stations 2 | . 2 . Recycling Units . | . . . Scanalyzers . | . . . Garrison Access . | . . . Terminal Hacks 1 | . 1 . Branch Access Points 1 | . 1 . Fabricator Hacks . | . . . Repair Station Hacks 2 | . 2 . Scan Component 1 | . 1 . Repair 1 | . 1 . Recycling Unit Hacks . | . . . Scanalyzer . | . . . Garrison Access Hacks . | . . . Unauthorized Hacks 2 | . 2 . Terminals 2 | . 2 . Botnet 2 | . 2 . Fabricators . | . . . Repair Stations . | . . . Recycling Units . | . . . Scanalyzers . | . . . Garrison Access . | . . . Data Cores Recovered . | . . . Used . | . . . Hacking Detections 3 | . 3 . Full Trace Events . | . . . Feedback Events . | . . . Feedback Blocked . | . . . Robot Schematics Acquired . | . . . Robots Built . | . . . Authchips . | . . . Time . | . . . Total Robot Build Rating . | . . . Part Schematics Acquired . | . . . Parts Built . | . . . Authchips . | . . . Time . | . . . Total Part Build Rating . | . . . Parts Repaired 1 | . 1 . Time 32 | . 32 . Parts Recycled . | . . . Recycled Matter . | . . . Retrieved Matter . | . . . Retrieved Components . | . . . Parts Scanalyzed . | . . . Part Schematics Acquired . | . . . Parts Damaged . | . . . Bothacking | -11 -10 -10 ------------ Run | Yrd Mat Min Used RIF Installer . | . . . Robots Hacked . | . . . Non-combat . | . . . Combat . | . . . Robot Hacks Applied . | . . . Relay Couplers Released . | . . . Fabnet Peak Effective % . | . . . Robots Rewired . | . . . Allies Hacked . | . . . Hacks Repelled . | . . . Allies | -11 -10 -10 -------- Run | Yrd Mat Min Total Allies . | . . . Largest Group . | . . . Highest-Rated Group . | . . . Highest-Rated Ally . | . . . Total Orders . | . . . Ally Attacks . | . . . Total Damage . | . . . Kills . | . . . Allies Corrupted . | . . . Allies Melted . | . . . Intel | -11 -10 -10 ------- Run | Yrd Mat Min Active Infowar (turns) 2632 | 111 2139 382 Seismic 2632 | 111 2139 382 Robot Analysis Total . | . . . Derelict Logs Recovered 1 | . . 1 Drone Launches . | . . . Drone Recoveries . | . . . Exploration | -11 -10 -10 ------------- Run | Yrd Mat Min Turns Passed 3118 | 247 2139 732 Spaces Moved 1190 | 114 890 186 Core 19 | 18 . 1 Treads . | . . . Legs 1171 | 96 890 185 Wheels . | . . . Hover . | . . . Flight . | . . . Fastest Speed 50 | 50 120 190 Average Speed 182 | 119 189 192 Slowest Speed 400 | 150 190 400 Overloaded Moves . | . . . Propulsion Burnouts . | . . . Robots Hopped . | . . . Potential Cave-ins . | . . . Cave-ins Triggered . | . . . Exploration Rate (%) 45 | 5 98 34 Regions Visited 2 Branch Regions 1 Pre-discovered Areas . | . . . Known Exits Taken 1 | . 1 . Unknown Exits Taken 1 | 1 . . Scrap Searched 1 | . . 1 Spaces Dug . | . . . Terrain Destroyed . | . . . Melee . | . . . Projectile . | . . . AOE . | . . . Terrain Rammed . | . . . Walls Destroyed . | . . . Machines Disabled . | . . . Actions | -11 -10 -10 --------- Run | Yrd Mat Min Total 1941 | 190 1224 527 Wait 594 | 48 229 317 Move 1188 | 113 889 186 Hop . | . . . Pick Up 20 | 7 11 2 Fast Attach 8 | 7 1 . Attach 3 | . 3 . Detach . | . . . Swap 13 | . 11 2 Drop 14 | . 11 3 Fire 101 | 15 69 17 Melee . | . . . Ram . | . . . Kick . | . . . Crush . | . . . Escape Stasis . | . . . Rewire . | . . . Trap . | . . . Miscellaneous . | . . . Route ------- -11/Scrapyard -10/Materials (discovered 5 exits: [*Mat x3] / *Min / [*Sub]) -10/Mines History --------- Turn | Location | Event 2 | -11/Scrapyard | Met Revision 17 12 | -11/Scrapyard | Discovered new exit (range 15) 248 | -11/Scrapyard | Entered Materials 304 | -10/Materials | Build established: Mutant 499 | -10/Materials | Discovered new exit (range 6) 566 | -10/Materials | Discovered new exit (range 12) 621 | -10/Materials | Discovered new exit (range 16) 744 | -10/Materials | Discovered new exit (range 6) 1023 | -10/Materials | Lost 3 parts (1p2w) 1301 | -10/Materials | Build established: Scavenger-Mutant 1344 | -10/Materials | Identified exit to Mines 1399 | -10/Materials | Discovered new exit (range 16) 1525 | -10/Materials | Core integrity fell below 50% 2010 | -10/Materials | Repaired Particle Gun 2387 | -10/Materials | Entered Mines 2437 | -10/Mines | Learned 2 Materials zone layouts 2736 | -10/Mines | Excavation squad dispatched 2736 | -10/Mines | A large section of the Mines collapsed 2986 | -10/Mines | Excavation squad dispatched 3036 | -10/Mines | Build established: Mutant 3103 | -10/Mines | Core integrity fell below 20% 3119 | -10/Mines | Destroyed by G-34 Mercenary with Small Laser Last Messages --------------- 02736_ ALERT: Suspicious cave-in, suspected derelict activity in mines. Dispatching escorted excavation squad. 02769_ Seismic Detector broken. 02769_ Overheating: Short circuit. 02986_ ALERT: Derelict activity in mines confirmed. Dispatching additional escorted excavation squad. 03085_ U-05 Engineer lays Concrete. 03085_ T-07 Excavator destroyed. 03091_ U-05 Engineer lays Concrete. 03094_ T-07 Excavator is excavating. 03096_ U-05 Engineer lays Concrete. 03099_ T-07 Excavator is excavating. 03104_ U-05 Engineer destroyed. 03106_ Ion Engine destroyed. 03106_ Broken Seismic Detector destroyed. 03108_ Aluminum Leg destroyed. 03108_ Med. Laser destroyed. 03108_ T-07 Excavator is excavating. 03114_ Aluminum Leg destroyed. 03118_ Beam Cannon destroyed. Map ----- +----------------------------------------------------+ | ?????????????????????????????????????????????????? | | ?????????????????????????????????????????????????? | | ?????????????????????????????????????????????????? | | ?????????????????????????????????????????????????? | | ?????????????????????????????????????????????????? | | ?????????????????????????#####???????????????????? | | ????????????????????????## ##??????????????????? | | ????????????????????????# ##?????????????????? | | ????????????????????????# ###???????????????? | | ?????????????????????????# ##??????????????? | | ?????????????????????????## ##?????????????? | | ??????????????????????????## ###???????????? | | ?????######????????????????###### ##??????????? | | ????##"[!"##????????????????## ;### #??????????? | | ????#""![""#????????????????## # #??????????? | | ????# ! #???????????????## !%!"# ##??????????? | | ?????# %%!#######??????????# |= # ##???????????? | | ????###++## ##?????????# ###????????????? | | ????# [ [=! #?###????## ##??????????????? | | ???## !%]%= ### ##?## ##???????????????? | | ??## !! = ### ### ###### #?????????? | | ??# ##?# # #?????????? | | ??# ##?## |g ########?????????? | | ??# ### ##?######%g## ##????????????????? | | ??# ##?## ########g!#####?????????????????? | | ??# ##??## @ #?????????????????????# | | ??# #???# tg #????????????#####???## | | ??## ##??###### ### ####???????????## ##?## | | ???## ######### #?# #????????####### ### | | ????# #?# ########## | | ???# ############?# %%| | | ???# ##????????????############# | | ???## ##?????????????????????????## ###### | | ????###????????????????????????????##########????? | | ?????????????????????????????????????????????????? | | ?????????????????????????????????????????????????? | | | | | | | | | | | | | | | | | | | | | | | | | | | | | +----------------------------------------------------+ Best States ------------- Heat Dissipation 25 Energy Generation 10 Energy Capacity 250 Matter Stores 300 Matter Capacity 300 Sight Range 16 Terrain Scan Density 10 Evasion (%) 55 Item Schematics ----------------- None Robot Schematics ------------------ None Fabricated ------------ Nothing Repaired ---------- Particle Gun | 32% | -10/Materials Alien Tech Used ----------------- None Achievements -------------- None Challenges ------------ None Game ------ Seed PlexusActuatorMatterbank Manual? 0 Play Time 00:19:27 Cumulative 50.5 hours Start 2025.09.02 @ 21:52:57 End 2025.09.02 @ 22:09:24 Sessions 1 Manual Loads 0 Difficulty Rogue Special Mode None Game No. 47 Rogue 47 Adventurer 0 Explorer 0 Win Type - Total 0 Types 0/0/0/0/0/0/0/0/0/0 Lore% 31 Gallery% 26 Achievement% 26 Wizard Run 0 Options --------- Layout 0 ASCII 0 Keyboard 1 Movement Numpad Keybinds 0 Fullscreen 1 Font 18/SmallcapsGlow Map View 76x50 Zoom Use 0% Tactical HUD 1 Map Filters NONE Filters NONE Steam 1 RUN: 181ed891-3a25-493c-aed2-65615a26834c